[Event "*** Titled Tuesday Blitz"]
[Site "Chess.com"]
[Date "2021.02.09"]
[Round "8"]
[White "CM_rui"]
[Black "TregubovP"]
[Result "1-0"]
[WhiteElo "2368"]
[BlackElo "2566"]
[TimeControl "180+1"]
[EndTime "11:24:56 PST"]
[Termination "CM_rui won by resignation"]

1. e4 {[%clk 0:03:00.9]} 1... e5 {[%clk 0:02:59.9]} 2. Nf3 {[%clk 0:02:59.6]}
2... Nc6 {[%clk 0:02:59.4]} 3. Bb5 {[%clk 0:03:00.3]} 3... a6 {[%clk 0:02:52.8]}
4. Ba4 {[%clk 0:02:59.8]} 4... d6 {[%clk 0:02:53.3]} 5. O-O {[%clk 0:02:58.1]}
5... Bd7 {[%clk 0:02:53.5]} 6. c3 {[%clk 0:02:56.7]} 6... g6 {[%clk 0:02:54]} 7.
d4 {[%clk 0:02:55.8]} 7... Bg7 {[%clk 0:02:54.6]} 8. Re1 {[%clk 0:02:47.9]} 8...
Nge7 {[%clk 0:02:51]} 9. h3 {[%clk 0:02:27.8]} 9... O-O {[%clk 0:02:48.9]} 10.
Bb3 {[%clk 0:02:11.3]} 10... h6 {[%clk 0:02:44.7]} 11. Be3 {[%clk 0:02:04.9]}
11... Kh7 {[%clk 0:02:40.2]} 12. dxe5 {[%clk 0:01:57.1]} 12... dxe5 {[%clk
0:02:31.8]} 13. Re2 {[%clk 0:01:52.2]} 13... Na5 {[%clk 0:02:26]} 14. Rd2 {[%clk
0:01:44.6]} 1-0

[Event "*** Titled Tuesday Blitz"]
[Site "Chess.com"]
[Date "2021.02.09"]
[Round "8"]
[White "Grandmaster2B"]
[Black "MF1966Idrisov"]
[Result "1-0"]
[WhiteElo "2532"]
[BlackElo "2397"]
[TimeControl "180+1"]
[EndTime "11:25:00 PST"]
[Termination "Grandmaster2B won by checkmate"]

1. e4 {[%clk 0:03:00.9]} 1... d6 {[%clk 0:02:59.4]} 2. d4 {[%clk 0:02:58.2]}
2... Nf6 {[%clk 0:02:59.5]} 3. Nc3 {[%clk 0:02:58.4]} 3... g6 {[%clk 0:02:59.1]}
4. f4 {[%clk 0:02:58.5]} 4... Bg7 {[%clk 0:02:59.5]} 5. Nf3 {[%clk 0:02:59.1]}
5... O-O {[%clk 0:02:59.6]} 6. Bd3 {[%clk 0:02:59.2]} 6... c5 {[%clk 0:02:58.7]}
7. dxc5 {[%clk 0:02:51.5]} 7... dxc5 {[%clk 0:02:58.5]} 8. Qe2 {[%clk
0:02:52.4]} 8... Nc6 {[%clk 0:02:58]} 9. e5 {[%clk 0:02:48.7]} 9... Nd5 {[%clk
0:02:57.4]} 10. Nxd5 {[%clk 0:02:47.4]} 10... Qxd5 {[%clk 0:02:57.3]} 11. Be4
{[%clk 0:02:48.1]} 11... Qd7 {[%clk 0:02:57]} 12. c3 {[%clk 0:02:48.7]} 12...
Qc7 {[%clk 0:02:52]} 13. h4 {[%clk 0:02:31.3]} 13... Bg4 {[%clk 0:02:40.7]} 14.
h5 {[%clk 0:02:29.5]} 14... Bxh5 {[%clk 0:02:31.8]} 15. Rxh5 {[%clk 0:02:25]}
15... gxh5 {[%clk 0:02:32]} 16. Bxh7+ {[%clk 0:02:07.2]} 16... Kxh7 {[%clk
0:01:48.2]} 17. Ng5+ {[%clk 0:02:06.7]} 17... Kg6 {[%clk 0:01:48.3]} 18. Qe4+
{[%clk 0:01:59.9]} 18... f5 {[%clk 0:01:48.3]} 19. exf6+ {[%clk 0:02:00.8]}
19... Kxf6 {[%clk 0:01:46.9]} 20. Qe6# {[%clk 0:02:01.1]} 1-0

[Event "*** Titled Tuesday Blitz"]
[Site "Chess.com"]
[Date "2021.02.09"]
[Round "8"]
[White "ChessWarrior7197"]
[Black "Gabrielian_Artur"]
[Result "1-0"]
[WhiteElo "2962"]
[BlackElo "2818"]
[TimeControl "180+1"]
[EndTime "11:25:14 PST"]
[Termination "ChessWarrior7197 won by resignation"]

1. e4 {[%clk 0:03:00.9]} 1... e5 {[%clk 0:02:59.4]} 2. Nf3 {[%clk 0:03:00.6]}
2... Nc6 {[%clk 0:02:58.3]} 3. Bb5 {[%clk 0:03:01]} 3... g6 {[%clk 0:02:58.4]}
4. d4 {[%clk 0:02:58.7]} 4... exd4 {[%clk 0:02:58.4]} 5. Nxd4 {[%clk 0:02:59.1]}
5... Bg7 {[%clk 0:02:57.1]} 6. Nxc6 {[%clk 0:02:59.6]} 6... bxc6 {[%clk
0:02:55.4]} 7. Ba4 {[%clk 0:02:59.7]} 7... Ne7 {[%clk 0:02:54.7]} 8. Nc3 {[%clk
0:02:59.4]} 8... O-O {[%clk 0:02:54.5]} 9. O-O {[%clk 0:02:59.4]} 9... d6 {[%clk
0:02:46]} 10. Bg5 {[%clk 0:02:58.1]} 10... Bd7 {[%clk 0:02:44.9]} 11. Qd2 {[%clk
0:02:57.7]} 11... Rb8 {[%clk 0:02:41.7]} 12. Bb3 {[%clk 0:02:57.3]} 12... Be6
{[%clk 0:02:42.3]} 13. Bh6 {[%clk 0:02:53.9]} 13... c5 {[%clk 0:02:31.7]} 14.
Bxg7 {[%clk 0:02:53.9]} 14... Kxg7 {[%clk 0:02:31.5]} 15. f4 {[%clk 0:02:54.5]}
15... Qd7 {[%clk 0:02:08.6]} 16. f5 {[%clk 0:02:44.2]} 16... gxf5 {[%clk
0:02:08.6]} 17. Qg5+ {[%clk 0:02:43.9]} 17... Kh8 {[%clk 0:01:57.7]} 18. Qf6+
{[%clk 0:02:44.1]} 18... Kg8 {[%clk 0:01:58]} 19. exf5 {[%clk 0:02:45]} 19...
Nxf5 {[%clk 0:01:45.6]} 20. Rae1 {[%clk 0:02:30.8]} 20... Rfe8 {[%clk
0:01:40.1]} 21. Rxe6 {[%clk 0:02:25.2]} 21... fxe6 {[%clk 0:01:32.8]} 22. Rxf5
{[%clk 0:02:24.1]} 22... Re7 {[%clk 0:01:27.8]} 23. Rg5+ {[%clk 0:02:23.7]}
23... Rg7 {[%clk 0:01:27.8]} 24. Bxe6+ {[%clk 0:02:24.3]} 1-0

[Event "*** Titled Tuesday Blitz"]
[Site "Chess.com"]
[Date "2021.02.09"]
[Round "8"]
[White "volunteers1998"]
[Black "Abdimalik_Abdisalimov"]
[Result "1-0"]
[WhiteElo "2071"]
[BlackElo "2262"]
[TimeControl "180+1"]
[EndTime "11:25:21 PST"]
[Termination "volunteers1998 won by resignation"]

1. e4 {[%clk 0:03:00.9]} 1... e5 {[%clk 0:02:59.2]} 2. Nc3 {[%clk 0:02:59.6]}
2... Nf6 {[%clk 0:02:56.9]} 3. Bc4 {[%clk 0:02:58.8]} 3... Nxe4 {[%clk
0:02:35.8]} 4. Qh5 {[%clk 0:02:56.9]} 4... Nd6 {[%clk 0:02:31.5]} 5. Bb3 {[%clk
0:02:48]} 5... Nc6 {[%clk 0:02:29.2]} 6. Nb5 {[%clk 0:02:44.8]} 6... g6 {[%clk
0:02:25.6]} 7. Qf3 {[%clk 0:02:41]} 7... f5 {[%clk 0:02:16.3]} 8. Qd5 {[%clk
0:02:38.3]} 8... Qg5 {[%clk 0:01:09.2]} 9. d4 {[%clk 0:02:30.9]} 9... Nxb5
{[%clk 0:01:06.2]} 10. Bxg5 {[%clk 0:02:25.9]} 10... Nd6 {[%clk 0:01:01.9]} 11.
Bf6 {[%clk 0:02:23]} 1-0

[Event "*** Titled Tuesday Blitz"]
[Site "Chess.com"]
[Date "2021.02.09"]
[Round "8"]
[White "ChristopherYoo"]
[Black "1977Ivan"]
[Result "1-0"]
[WhiteElo "2875"]
[BlackElo "2678"]
[TimeControl "180+1"]
[EndTime "11:25:22 PST"]
[Termination "ChristopherYoo won by resignation"]

1. e4 {[%clk 0:03:00.9]} 1... e5 {[%clk 0:02:59]} 2. Nf3 {[%clk 0:03:00.5]} 2...
Nc6 {[%clk 0:02:59.4]} 3. Bb5 {[%clk 0:03:00.5]} 3... a6 {[%clk 0:02:59.7]} 4.
Ba4 {[%clk 0:03:00.6]} 4... Nf6 {[%clk 0:02:59.9]} 5. d4 {[%clk 0:03:00.8]} 5...
exd4 {[%clk 0:02:56.4]} 6. O-O {[%clk 0:03:00.7]} 6... Be7 {[%clk 0:02:55.4]} 7.
e5 {[%clk 0:03:00.2]} 7... Ne4 {[%clk 0:02:49.3]} 8. Nxd4 {[%clk 0:02:58.6]}
8... Nc5 {[%clk 0:02:45.9]} 9. Nf5 {[%clk 0:02:58.4]} 9... g6 {[%clk 0:02:33.3]}
10. Nxe7 {[%clk 0:02:48]} 10... Qxe7 {[%clk 0:02:32.6]} 11. Nc3 {[%clk
0:02:47.2]} 11... Nxa4 {[%clk 0:02:22.8]} 12. Nd5 {[%clk 0:02:46.8]} 12... Qc5
{[%clk 0:01:15.3]} 13. Nxc7+ {[%clk 0:02:43.5]} 13... Kd8 {[%clk 0:01:15.2]} 14.
Nxa8 {[%clk 0:02:43.1]} 14... Qxe5 {[%clk 0:01:14.7]} 15. Re1 {[%clk 0:02:39.9]}
15... Qc5 {[%clk 0:01:01.3]} 16. Be3 {[%clk 0:02:23.9]} 16... Qb4 {[%clk
0:00:59.6]} 17. Bg5+ {[%clk 0:02:22]} 1-0

[Event "*** Titled Tuesday Blitz"]
[Site "Chess.com"]
[Date "2021.02.09"]
[Round "8"]
[White "Sjakkerntobi"]
[Black "Euwe1234"]
[Result "0-1"]
[WhiteElo "2310"]
[BlackElo "2472"]
[TimeControl "180+1"]
[EndTime "11:25:30 PST"]
[Termination "Euwe1234 won by resignation"]

1. e4 {[%clk 0:03:00.9]} 1... c5 {[%clk 0:03:00.1]} 2. Nf3 {[%clk 0:02:59.5]}
2... d6 {[%clk 0:03:00.8]} 3. d4 {[%clk 0:02:59.9]} 3... cxd4 {[%clk 0:03:01.3]}
4. Qxd4 {[%clk 0:03:00.8]} 4... Nf6 {[%clk 0:03:01.8]} 5. Nc3 {[%clk 0:03:00]}
5... Nc6 {[%clk 0:03:01.3]} 6. Bb5 {[%clk 0:02:59.7]} 6... e5 {[%clk 0:03:00.9]}
7. Qd3 {[%clk 0:02:58.4]} 7... h6 {[%clk 0:03:01.1]} 8. Nd2 {[%clk 0:02:57.2]}
8... Bd7 {[%clk 0:03:01.3]} 9. Nc4 {[%clk 0:02:56.2]} 9... a6 {[%clk 0:02:55.2]}
10. Bxc6 {[%clk 0:02:55.9]} 10... Bxc6 {[%clk 0:02:55.3]} 11. Ne3 {[%clk
0:02:56.1]} 11... Be7 {[%clk 0:02:55]} 12. Ncd5 {[%clk 0:02:54.2]} 12... O-O
{[%clk 0:02:53.5]} 13. c3 {[%clk 0:02:53.8]} 13... Nxd5 {[%clk 0:02:53]} 14.
Nxd5 {[%clk 0:02:54]} 14... Bxd5 {[%clk 0:02:52.5]} 15. Qxd5 {[%clk 0:02:53.6]}
15... Qc7 {[%clk 0:02:52.4]} 16. Be3 {[%clk 0:02:52.7]} 16... Qc6 {[%clk
0:02:50.6]} 17. Rd1 {[%clk 0:02:51.7]} 17... Rac8 {[%clk 0:02:50.6]} 18. O-O
{[%clk 0:02:51.5]} 18... Kh7 {[%clk 0:02:49.5]} 19. Qxc6 {[%clk 0:02:41.6]}
19... bxc6 {[%clk 0:02:49.2]} 20. f4 {[%clk 0:02:36.3]} 20... f6 {[%clk
0:02:39]} 21. fxe5 {[%clk 0:02:29.6]} 21... fxe5 {[%clk 0:02:37.6]} 22. Rxf8
{[%clk 0:02:30.5]} 22... Bxf8 {[%clk 0:02:36.5]} 23. Rf1 {[%clk 0:02:31.4]}
23... Kg6 {[%clk 0:02:34.3]} 24. Kf2 {[%clk 0:02:29.7]} 24... Be7 {[%clk
0:02:32.3]} 25. Ke2 {[%clk 0:02:29.2]} 25... d5 {[%clk 0:02:31.5]} 26. exd5
{[%clk 0:02:25.1]} 26... cxd5 {[%clk 0:02:31.2]} 27. Rd1 {[%clk 0:02:26]} 27...
Rd8 {[%clk 0:02:31.2]} 28. g4 {[%clk 0:02:17.5]} 28... Bf6 {[%clk 0:02:30.5]}
29. a4 {[%clk 0:02:11.2]} 29... d4 {[%clk 0:02:29.3]} 30. cxd4 {[%clk
0:02:11.2]} 30... exd4 {[%clk 0:02:30.2]} 31. Bc1 {[%clk 0:02:08.9]} 31... Rb8
{[%clk 0:02:25.9]} 32. Rd3 {[%clk 0:02:05.3]} 32... Rb4 {[%clk 0:02:24.1]} 33.
b3 {[%clk 0:02:03.6]} 33... Rb7 {[%clk 0:02:19.6]} 34. Kf3 {[%clk 0:02:01.8]}
34... Rc7 {[%clk 0:02:18.3]} 35. Bf4 {[%clk 0:01:58.6]} 35... Rc2 {[%clk
0:02:15.9]} 36. Rd2 {[%clk 0:01:57.8]} 36... Rc3+ {[%clk 0:02:15.7]} 37. Ke4
{[%clk 0:01:56.5]} 37... Rxb3 {[%clk 0:02:16.6]} 38. Be5 {[%clk 0:01:54.5]}
38... Re3+ {[%clk 0:02:15.6]} 0-1

[Event "*** Titled Tuesday Blitz"]
[Site "Chess.com"]
[Date "2021.02.09"]
[Round "8"]
[White "skoularikii"]
[Black "Colombiano07"]
[Result "1-0"]
[WhiteElo "2495"]
[BlackElo "2317"]
[TimeControl "180+1"]
[EndTime "11:25:48 PST"]
[Termination "skoularikii won by resignation"]

1. e4 {[%clk 0:02:33.2]} 1... c6 {[%clk 0:02:57.1]} 2. d4 {[%clk 0:02:32.9]}
2... d5 {[%clk 0:02:58]} 3. e5 {[%clk 0:02:33.1]} 3... Bf5 {[%clk 0:02:57.6]} 4.
Nf3 {[%clk 0:02:33.4]} 4... e6 {[%clk 0:02:57.7]} 5. Be2 {[%clk 0:02:33.7]} 5...
c5 {[%clk 0:02:57.7]} 6. Nbd2 {[%clk 0:02:31.8]} 6... Ne7 {[%clk 0:02:57.3]} 7.
dxc5 {[%clk 0:02:28.2]} 7... Nec6 {[%clk 0:02:55.5]} 8. Nb3 {[%clk 0:02:28.8]}
8... Nd7 {[%clk 0:02:55.1]} 9. Bf4 {[%clk 0:02:28.5]} 9... Nxc5 {[%clk
0:02:54.3]} 10. O-O {[%clk 0:02:24.7]} 10... Be7 {[%clk 0:02:53.8]} 11. Nbd4
{[%clk 0:02:18.7]} 11... Bg6 {[%clk 0:02:51.5]} 12. Nxc6 {[%clk 0:02:00.1]}
12... bxc6 {[%clk 0:02:49.9]} 13. Nd4 {[%clk 0:02:00.4]} 13... Rc8 {[%clk
0:02:40.6]} 14. c4 {[%clk 0:01:52]} 14... O-O {[%clk 0:02:38.3]} 15. b4 {[%clk
0:01:50.6]} 15... Ne4 {[%clk 0:02:37.2]} 16. Qb3 {[%clk 0:01:45.5]} 16... Qb6
{[%clk 0:02:31.9]} 17. c5 {[%clk 0:01:43.6]} 17... Qb7 {[%clk 0:02:18.8]} 18. f3
{[%clk 0:01:32.8]} 1-0

[Event "*** Titled Tuesday Blitz"]
[Site "Chess.com"]
[Date "2021.02.09"]
[Round "8"]
[White "kidagent"]
[Black "Synctel"]
[Result "1-0"]
[WhiteElo "2273"]
[BlackElo "2019"]
[TimeControl "180+1"]
[EndTime "11:25:50 PST"]
[Termination "kidagent won by resignation"]

1. e4 {[%clk 0:03:00.9]} 1... e6 {[%clk 0:02:59.4]} 2. d4 {[%clk 0:03:00.4]}
2... d5 {[%clk 0:02:59.5]} 3. Nd2 {[%clk 0:03:01.3]} 3... Nc6 {[%clk 0:02:58.6]}
4. Ngf3 {[%clk 0:03:00.5]} 4... Nf6 {[%clk 0:02:59.2]} 5. e5 {[%clk 0:03:00.3]}
5... Nd7 {[%clk 0:02:59.8]} 6. Bb5 {[%clk 0:02:58.9]} 6... Be7 {[%clk
0:02:52.4]} 7. O-O {[%clk 0:02:56.9]} 7... O-O {[%clk 0:02:49.9]} 8. c3 {[%clk
0:02:52.8]} 8... f6 {[%clk 0:02:23.9]} 9. exf6 {[%clk 0:02:52.4]} 9... Nxf6
{[%clk 0:02:10.3]} 10. Re1 {[%clk 0:02:52.6]} 10... Bd6 {[%clk 0:01:26.6]} 11.
Ne5 {[%clk 0:02:47.8]} 11... Ne7 {[%clk 0:01:18]} 12. Ndf3 {[%clk 0:02:45.4]}
12... c5 {[%clk 0:01:15.1]} 13. Bg5 {[%clk 0:02:40.1]} 13... Bxe5 {[%clk
0:00:46.5]} 14. dxe5 {[%clk 0:02:25.3]} 14... Ne4 {[%clk 0:00:41.9]} 15. Rxe4
{[%clk 0:02:22.2]} 15... dxe4 {[%clk 0:00:33.9]} 16. Qxd8 {[%clk 0:02:23.1]}
16... Rxd8 {[%clk 0:00:33.5]} 17. Bxe7 {[%clk 0:02:23]} 1-0

[Event "*** Titled Tuesday Blitz"]
[Site "Chess.com"]
[Date "2021.02.09"]
[Round "8"]
[White "AttilaTurzo"]
[Black "Sergienko_Sergey"]
[Result "1-0"]
[WhiteElo "2533"]
[BlackElo "2392"]
[TimeControl "180+1"]
[EndTime "11:26:07 PST"]
[Termination "AttilaTurzo won by resignation"]

1. d4 {[%clk 0:03:00.9]} 1... Nf6 {[%clk 0:02:53.2]} 2. Nf3 {[%clk 0:03:01.1]}
2... d5 {[%clk 0:02:51.1]} 3. Bf4 {[%clk 0:03:01.2]} 3... Bf5 {[%clk 0:02:48.9]}
4. e3 {[%clk 0:03:00.9]} 4... e6 {[%clk 0:02:48.3]} 5. c4 {[%clk 0:03:00.4]}
5... c6 {[%clk 0:02:43.5]} 6. Nc3 {[%clk 0:02:59.8]} 6... Bd6 {[%clk 0:02:39.4]}
7. Qb3 {[%clk 0:02:54.9]} 7... Bxf4 {[%clk 0:02:29.8]} 8. Qxb7 {[%clk
0:02:53.8]} 8... Nbd7 {[%clk 0:02:22.4]} 9. exf4 {[%clk 0:02:54]} 9... Rb8
{[%clk 0:02:19]} 10. Qxa7 {[%clk 0:02:53.2]} 10... Rxb2 {[%clk 0:02:16.9]} 11.
Qa3 {[%clk 0:02:47.9]} 11... Qb8 {[%clk 0:02:03.9]} 12. Be2 {[%clk 0:02:44.2]}
12... dxc4 {[%clk 0:01:50.8]} 13. O-O {[%clk 0:02:33.9]} 13... Nd5 {[%clk
0:01:46.5]} 14. Bxc4 {[%clk 0:02:32.1]} 14... Nxc3 {[%clk 0:01:31.8]} 15. Qxc3
{[%clk 0:02:31.5]} 15... O-O {[%clk 0:01:30.4]} 16. Bb3 {[%clk 0:02:22]} 16...
Re2 {[%clk 0:01:30.3]} 17. g3 {[%clk 0:02:19.8]} 17... Bh3 {[%clk 0:01:20.3]}
18. Rfb1 {[%clk 0:02:03.4]} 18... Qd6 {[%clk 0:01:14.2]} 19. Qd3 {[%clk
0:01:49.9]} 1-0

[Event "*** Titled Tuesday Blitz"]
[Site "Chess.com"]
[Date "2021.02.09"]
[Round "8"]
[White "XDPS"]
[Black "aa175"]
[Result "1-0"]
[WhiteElo "2746"]
[BlackElo "2602"]
[TimeControl "180+1"]
[EndTime "11:26:32 PST"]
[Termination "XDPS won by resignation"]

1. d4 {[%clk 0:03:00.9]} 1... e5 {[%clk 0:02:59.6]} 2. dxe5 {[%clk 0:02:59.9]}
2... Nc6 {[%clk 0:02:59.9]} 3. Nf3 {[%clk 0:02:58]} 3... Qe7 {[%clk 0:02:59.9]}
4. Qd5 {[%clk 0:02:56.8]} 4... f6 {[%clk 0:02:59]} 5. exf6 {[%clk 0:02:56.5]}
5... Nxf6 {[%clk 0:02:59.9]} 6. Qb3 {[%clk 0:02:51.4]} 6... d5 {[%clk
0:03:00.8]} 7. Nc3 {[%clk 0:02:48.6]} 7... Bd7 {[%clk 0:02:49.6]} 8. Bg5 {[%clk
0:02:46.3]} 8... Na5 {[%clk 0:02:29.1]} 9. Bxf6 {[%clk 0:02:30.6]} 9... Nxb3
{[%clk 0:02:26]} 10. Bxe7 {[%clk 0:02:30.2]} 10... Nxa1 {[%clk 0:02:25.7]} 11.
Bxf8 {[%clk 0:02:30.7]} 11... Rxf8 {[%clk 0:02:22.7]} 12. Kd2 {[%clk 0:02:24.6]}
12... d4 {[%clk 0:02:03.1]} 13. Nxd4 {[%clk 0:02:02.8]} 13... c5 {[%clk
0:02:01.3]} 14. Nf3 {[%clk 0:01:59.8]} 14... O-O-O {[%clk 0:02:00.1]} 15. Kc1
{[%clk 0:01:54.7]} 15... b5 {[%clk 0:01:42]} 16. e4 {[%clk 0:01:39.5]} 16... b4
{[%clk 0:01:39.5]} 17. Nd5 {[%clk 0:01:39.4]} 17... Bg4 {[%clk 0:01:04.8]} 18.
Ne5 {[%clk 0:01:35]} 18... Be6 {[%clk 0:00:41.9]} 19. Ba6+ {[%clk 0:01:34.1]}
1-0

[Event "*** Titled Tuesday Blitz"]
[Site "Chess.com"]
[Date "2021.02.09"]
[Round "8"]
[White "Mikhail_Golubev"]
[Black "MartinMatthiesen"]
[Result "1-0"]
[WhiteElo "2535"]
[BlackElo "2392"]
[TimeControl "180+1"]
[EndTime "11:26:46 PST"]
[Termination "Mikhail_Golubev won by resignation"]

1. e4 {[%clk 0:03:00.9]} 1... c6 {[%clk 0:02:55.5]} 2. d4 {[%clk 0:02:59.7]}
2... d5 {[%clk 0:02:55.5]} 3. Nc3 {[%clk 0:02:59.6]} 3... dxe4 {[%clk
0:02:55.2]} 4. Nxe4 {[%clk 0:03:00.5]} 4... Bf5 {[%clk 0:02:55.3]} 5. Ng3 {[%clk
0:02:59.9]} 5... Bg6 {[%clk 0:02:55.5]} 6. c3 {[%clk 0:03:00.2]} 6... e6 {[%clk
0:02:43.1]} 7. Nh3 {[%clk 0:02:56.5]} 7... Nf6 {[%clk 0:02:21.6]} 8. Nf4 {[%clk
0:02:54.8]} 8... Nbd7 {[%clk 0:01:39.9]} 9. h4 {[%clk 0:02:51.3]} 9... Qc7
{[%clk 0:01:38.7]} 10. h5 {[%clk 0:02:44.7]} 10... Bf5 {[%clk 0:01:38.5]} 11.
Nxf5 {[%clk 0:02:37.9]} 11... exf5 {[%clk 0:01:39.4]} 12. Bd3 {[%clk 0:02:25.2]}
12... Bd6 {[%clk 0:01:38.2]} 13. Qe2+ {[%clk 0:01:59.4]} 13... Kf8 {[%clk
0:01:37.3]} 14. Qf3 {[%clk 0:01:52.1]} 14... Re8+ {[%clk 0:01:33.8]} 15. Kf1
{[%clk 0:01:36.9]} 15... Ne4 {[%clk 0:01:32.3]} 16. Ne2 {[%clk 0:00:55.7]} 16...
g6 {[%clk 0:01:17.7]} 17. hxg6 {[%clk 0:00:54.9]} 17... fxg6 {[%clk 0:01:17.2]}
18. Bh6+ {[%clk 0:00:49.1]} 18... Kg8 {[%clk 0:01:16.5]} 19. Bc4+ {[%clk
0:00:48.5]} 1-0

[Event "*** Titled Tuesday Blitz"]
[Site "Chess.com"]
[Date "2021.02.09"]
[Round "8"]
[White "FMalexhdez"]
[Black "BabyBoss31"]
[Result "0-1"]
[WhiteElo "2179"]
[BlackElo "2337"]
[TimeControl "180+1"]
[EndTime "11:26:47 PST"]
[Termination "BabyBoss31 won by resignation"]

1. e4 {[%clk 0:01:46.8]} 1... c6 {[%clk 0:02:59.1]} 2. d4 {[%clk 0:01:45]} 2...
d5 {[%clk 0:03:00]} 3. exd5 {[%clk 0:01:44.9]} 3... cxd5 {[%clk 0:03:00.9]} 4.
Bd3 {[%clk 0:01:37.6]} 4... Nf6 {[%clk 0:02:59.6]} 5. c3 {[%clk 0:01:37.7]} 5...
Bg4 {[%clk 0:02:58.7]} 6. Qb3 {[%clk 0:01:36.7]} 6... Qc7 {[%clk 0:02:55.7]} 7.
Nd2 {[%clk 0:01:37.2]} 7... Nc6 {[%clk 0:02:54.9]} 8. Ngf3 {[%clk 0:01:37.2]}
8... e6 {[%clk 0:02:55.3]} 9. O-O {[%clk 0:01:36.6]} 9... Bd6 {[%clk 0:02:55.1]}
10. Re1 {[%clk 0:01:36.5]} 10... O-O {[%clk 0:02:55.1]} 11. h3 {[%clk
0:01:34.6]} 11... Bh5 {[%clk 0:02:55]} 12. a4 {[%clk 0:01:24.8]} 12... Na5
{[%clk 0:02:48.6]} 13. Qa2 {[%clk 0:01:21.8]} 13... a6 {[%clk 0:02:42.1]} 14.
Ne5 {[%clk 0:01:20.8]} 14... Bg6 {[%clk 0:02:38]} 15. Nxg6 {[%clk 0:01:17.3]}
15... hxg6 {[%clk 0:02:38.9]} 16. Nf3 {[%clk 0:01:16.9]} 16... Rac8 {[%clk
0:02:36.7]} 17. Ne5 {[%clk 0:01:16.6]} 17... Nd7 {[%clk 0:02:20.4]} 18. f4
{[%clk 0:01:12.9]} 18... Bxe5 {[%clk 0:02:17.2]} 19. fxe5 {[%clk 0:01:12.2]}
19... Nc4 {[%clk 0:02:17.2]} 20. b3 {[%clk 0:01:05.8]} 20... Ncxe5 {[%clk
0:01:36.8]} 21. dxe5 {[%clk 0:01:00.5]} 21... Qxc3 {[%clk 0:01:36.7]} 22. Ba3
{[%clk 0:00:57]} 22... Qxd3 {[%clk 0:01:33.4]} 23. Bxf8 {[%clk 0:00:56.5]} 23...
Nxf8 {[%clk 0:01:21.4]} 24. Rac1 {[%clk 0:00:55.3]} 24... Rxc1 {[%clk
0:01:19.4]} 25. Rxc1 {[%clk 0:00:51]} 25... Qe3+ {[%clk 0:01:19.8]} 0-1

[Event "*** Titled Tuesday Blitz"]
[Site "Chess.com"]
[Date "2021.02.09"]
[Round "8"]
[White "zim0ne"]
[Black "Savagelittlemole"]
[Result "1-0"]
[WhiteElo "2532"]
[BlackElo "2396"]
[TimeControl "180+1"]
[EndTime "11:26:55 PST"]
[Termination "zim0ne won by resignation"]

1. Nf3 {[%clk 0:03:00]} 1... Nf6 {[%clk 0:02:59.7]} 2. c4 {[%clk 0:03:00.3]}
2... Nc6 {[%clk 0:02:58.2]} 3. d4 {[%clk 0:02:58.4]} 3... d6 {[%clk 0:02:58.3]}
4. g3 {[%clk 0:02:58.1]} 4... Bg4 {[%clk 0:02:58.1]} 5. Bg2 {[%clk 0:02:57.6]}
5... g6 {[%clk 0:02:58.2]} 6. d5 {[%clk 0:02:56.4]} 6... Bxf3 {[%clk 0:02:56.3]}
7. exf3 {[%clk 0:02:57.3]} 7... Ne5 {[%clk 0:02:55.8]} 8. f4 {[%clk 0:02:57]}
8... Ned7 {[%clk 0:02:54.3]} 9. Nc3 {[%clk 0:02:56.9]} 9... Bg7 {[%clk
0:02:54.4]} 10. O-O {[%clk 0:02:57.4]} 10... O-O {[%clk 0:02:54.5]} 11. h4
{[%clk 0:02:57.4]} 11... h5 {[%clk 0:02:52.2]} 12. Bh3 {[%clk 0:02:53.4]} 12...
Nc5 {[%clk 0:02:51.1]} 13. Re1 {[%clk 0:02:50.8]} 13... a5 {[%clk 0:02:49.7]}
14. Be3 {[%clk 0:02:49.7]} 14... b6 {[%clk 0:02:47.3]} 15. f5 {[%clk 0:02:47.4]}
15... Nce4 {[%clk 0:02:33.3]} 16. Nxe4 {[%clk 0:02:47.1]} 16... Nxe4 {[%clk
0:02:34.2]} 17. Qc2 {[%clk 0:02:47.5]} 17... gxf5 {[%clk 0:02:23]} 18. Bxf5
{[%clk 0:02:48.4]} 18... Nf6 {[%clk 0:02:22.7]} 19. Bg5 {[%clk 0:02:47.9]} 19...
Kh8 {[%clk 0:01:58.8]} 20. Re3 {[%clk 0:02:47.4]} 20... e6 {[%clk 0:01:33]} 21.
dxe6 {[%clk 0:02:46.3]} 21... fxe6 {[%clk 0:01:33.9]} 22. Rxe6 {[%clk
0:02:43.7]} 22... d5 {[%clk 0:01:33.1]} 23. Rd1 {[%clk 0:02:42.7]} 23... c6
{[%clk 0:01:20.1]} 24. Rxc6 {[%clk 0:02:41.3]} 24... d4 {[%clk 0:01:01.6]} 25.
Qe2 {[%clk 0:02:41.1]} 25... Qe8 {[%clk 0:00:59.4]} 26. Re6 {[%clk 0:02:39.7]}
26... Qf7 {[%clk 0:00:59.3]} 27. Re7 {[%clk 0:02:39.7]} 27... Qg8 {[%clk
0:00:37.4]} 28. Rxd4 {[%clk 0:02:39.1]} 28... Rf7 {[%clk 0:00:23]} 29. Rdd7
{[%clk 0:02:33.1]} 29... Rxe7 {[%clk 0:00:13.6]} 30. Rxe7 {[%clk 0:02:32.8]}
30... Rf8 {[%clk 0:00:11.6]} 31. Bg6 {[%clk 0:02:32]} 31... a4 {[%clk
0:00:05.7]} 32. Bxf6 {[%clk 0:02:31.8]} 32... Rxf6 {[%clk 0:00:04.6]} 33. Qxh5+
{[%clk 0:02:32.3]} 1-0